Workbook

Sheet Superpesis
B1: Tiia Koivuniemi | E1: 14.11.1992 Ylihärmä
B2: SUPERPESIS | E2: Runkosarja | I2: Kärkilyönnit (KL), pesänvälit | P2: Ylempi loppusarja | U2: Alempi loppusarja | Z2: Arvo-ottelut ja mitalit
B3: Vuosi | C3: Sija | D3: Seura | E3: OTT | F3: KUN | G3: LÖI | H3: TOI | I3: KL | J3: 0 > 1 | K3: 1 > 2 | L3: 2 > 3 | M3: 3 > k | N3: KL-% | P3: OTT | Q3: KUN | R3: LÖI | S3: TOI | T3: KL | U3: OTT | V3: KUN | W3: LÖI | X3: TOI | Y3: KL | Z3: IL | AA3: LL | AB3: Halli | AC3: K | AD3: H | AE3: P
B4: 2007 | C4: 8. | D4: YPJ | E4: 0 | F4: 0 | G4: 0 | H4: 0 | I4: 0 | J4: 0 | K4: 0 | L4: 0 | M4: 0 | P4: 1 | Q4: 0 | R4: 0 | S4: 0 | T4: 0
B5: 2008 | C5: 9. | D5: YPJ | E5: 18 | F5: 1 | G5: 4 | H5: 8 | I5: 47 | J5: 30 | K5: 8 | L5: 4 | M5: 5 | N5: 44.8 % | O5: =PRODUCT(I5/N5) -> 105.0044683
B6: 2009 | C6: 11. | D6: YPJ | E6: 22 | F6: 0 | G6: 1 | H6: 14 | I6: 55 | J6: 38 | K6: 14 | L6: 2 | M6: 1 | N6: 44.4 % | O6: 124.0135287 | U6: 10 | V6: 0 | W6: 2 | X6: 1 | Y6: 26
B7: 2010 | C7: 10. | D7: YPJ | E7: 24 | F7: 3 | G7: 6 | H7: 17 | I7: 75 | J7: 38 | K7: 16 | L7: 12 | M7: 9 | N7: 50.3 % | O7: 149.0164912 | U7: 3 | V7: 2 | W7: 1 | X7: 9 | Y7: 19
B8: 2011 | C8: 1. | D8: Virkiä | E8: 21 | F8: 2 | G8: 11 | H8: 21 | I8: 52 | J8: 27 | K8: 3 | L8: 9 | M8: 13 | N8: 48.1 % | O8: 108.1081081 | P8: 11 | Q8: 1 | R8: 6 | S8: 3 | T8: 25 | Z8: 1 | AC8: 1
B9: 2012 | C9: 1. | D9: Virkiä | E9: 22 | F9: 5 | G9: 24 | H9: 21 | I9: 87 | J9: 25 | K9: 14 | L9: 19 | M9: 29 | N9: 68.5 % | O9: 127.0072993 | P9: 15 | Q9: 0 | R9: 6 | S9: 8 | T9: 41 | Z9: 1 | AA9: 1 | AB9: 1 | AC9: 1
B10: 2013 | C10: 1. | D10: Virkiä | E10: 23 | F10: 1 | G10: 20 | H10: 21 | I10: 62 | J10: 20 | K10: 17 | L10: 4 | M10: 21 | N10: 50.8 % | O10: 122.0232238 | P10: 9 | Q10: 1 | R10: 4 | S10: 14 | T10: 28 | Z10: 1 | AB10: 1 | AC10: 1
B11: Yhteensä | E11: =SUM(E4:E10) -> 130 | F11: 12 | G11: 66 | H11: 102 | I11: 378 | J11: 178 | K11: 72 | L11: 50 | M11: 78 | N11: =PRODUCT(I11/O11) -> 51.4 % | O11: =SUM(O5:O10) -> 735.1731193 | P11: =SUM(P4:P10) -> 36 | Q11: 2 | R11: 16 | S11: 25 | T11: 94 | U11: 13 | V11: 2 | W11: 3 | X11: 10 | Y11: 45 | Z11: 3 | AA11: 1 | AB11: 2 | AC11: 3 | AD11: 0 | AE11: 0
B12: Pesispörssi | D12: =SUM(F11:H11)+((I11-F11-G11)/3)+(E11/3)+(Z11*25)+(AA11*25)+(AB11*10)+(AC11*25)+(AD11*20)+(AE11*15) -> 518.3
B14: URA SUPERISSA | E14: OTT | F14: KUN | G14: LÖI | H14: TOI | I14: KL | K14: ka/L | L14: ka/T | M14: ka/KL | N14: KL - % | P14: ENSIMMÄISET
B15: Runkosarja | E15: =PRODUCT(E11) -> 130 | F15: =PRODUCT(F11) -> 12 | G15: =PRODUCT(G11) -> 66 | H15: =PRODUCT(H11) -> 102 | I15: =PRODUCT(I11) -> 378 | K15: =PRODUCT((F15+G15)/E15) -> 0.60 | L15: =PRODUCT(H15/E15) -> 0.78 | M15: =PRODUCT(I15/E15) -> 2.91 | N15: =PRODUCT(N11) -> 51.4 % | O15: =PRODUCT(O11) -> 735.1731193 | P15: Ottelu | R15: 29.08. 2007 Virkiä - YPJ 2-0 (5-4, 5-1) | AA15: 1. ottelu | AC15: 14 v 9 kk 15 pv
B16: Ylempi loppusarja | E16: =SUM(P11) -> 36 | F16: =SUM(Q11) -> 2 | G16: =SUM(R11) -> 16 | H16: =SUM(S11) -> 25 | I16: =SUM(T11) -> 94 | K16: =PRODUCT((F16+G16)/E16) -> 0.50 | L16: =PRODUCT(H16/E16) -> 0.69 | M16: =PRODUCT(I16/E16) -> 2.61 | N16: =PRODUCT(I16/O16) -> 54.0 % | O16: 174 | P16: Lyöty | R16: 21.05. 2008 YPJ - SiiPe 1-2 (1-2, 6-5, 0-0, 2-3) | AA16: 4. ottelu | AC16: 15 v 6 kk 7 pv
B17: Alempi loppusarja | E17: =PRODUCT(U11) -> 13 | F17: =PRODUCT(V11) -> 2 | G17: =PRODUCT(W11) -> 3 | H17: =PRODUCT(X11) -> 10 | I17: =PRODUCT(Y11) -> 45 | K17: =PRODUCT((F17+G17)/E17) -> 0.38 | L17: =PRODUCT(H17/E17) -> 0.77 | M17: =PRODUCT(I17/E17) -> 3.46 | N17: 54.9 % | O17: =PRODUCT(I17/N17) -> 81.96721311 | P17: Tuotu | R17: 21.05. 2008 YPJ - SiiPe 1-2 (1-2, 6-5, 0-0, 2-3) | AA17: 4. ottelu | AC17: 15 v 6 kk 7 pv
B18: KAIKKI | E18: =SUM(E15:E17) -> 179 | F18: =SUM(F15:F17) -> 16 | G18: =SUM(G15:G17) -> 85 | H18: =SUM(H15:H17) -> 137 | I18: =SUM(I15:I17) -> 517 | K18: =PRODUCT((F18+G18)/E18) -> 0.56 | L18: =PRODUCT(H18/E18) -> 0.77 | M18: =PRODUCT(I18/E18) -> 2.89 | N18: =PRODUCT(I18/O18) -> 52.2 % | O18: =SUM(O15:O17) -> 991.1403324 | P18: Kunnari | R18: 21.05. 2008 YPJ - SiiPe 1-2 (1-2, 6-5, 0-0, 2-3) | AA18: 4. ottelu | AC18: 15 v 6 kk 7 pv
B20: Tyttöpesäpalloilija 2011
B22: Seurat | D22: YPJ = Ylihärmän Pesis-Junkkarit (1996), kasvattajaseura
D23: Virkiä = Lapuan Virkiä (1907)

Sheet Arvo-ottelut
B1: ITÄ - LÄNSI - KORTTI
B2: Tiia Koivuniemi | C2: 14.11.1992 Ylihärmä
B3: NAISET | C3: Itä - Länsi, tulos | D3: Joukkue | E3: Seura | G3: V | H3: T | I3: H | J3: Up. | K3: Lj. | L3: Palk. | M3: O | N3: K | O3: L | P3: T | Q3: KL | R3: 1 | S3: 2 | T3: 3 | U3: k | V3: KL-% | W3: Pelinjohtaja | X3: Yleisöä
B4: 23.07. 2011 Kouvola | C4: 0-2 (1-5, 3-4) | D4: Länsi | E4: Virkiä | G4: 1 | J4: 2p | K4: 5 | M4: 1 | O4: 1 | Q4: 4/4 | R4: 1/1 | S4: 1/1 | T4: 1/1 | U4: 1/1 | V4: 100.0 % | W4: Jukka Liikala | X4: 3128
B5: 27.06. 2012 Sotkamo | C5: 0-2 (3-4, 0-1) | D5: Länsi | E5: Virkiä | G5: 1 | J5: 2p | K5: 9 | M5: 1 | Q5: 0/1 | R5: 0/1 | V5: 0.0 % | W5: Jukka Liikala | X5: 3110
B6: 13.07. 2013 Hyvinkää | C6: 0-1 (2-2, 2-6) | D6: Länsi | E6: Virkiä | G6: 1 | J6: 2p | K6: 9 | M6: 1 | Q6: 1/2 | R6: 1/1 | S6: 0/1 | V6: 50.0 % | W6: Jukka Liikala | X6: 3038
B7: Yhteensä | G7: =SUM(G4:G6) -> 3 | M7: =SUM(M4:M6) -> 3 | O7: 1 | Q7: 5/7 | R7: 2/3 | S7: 1/2 | T7: 1/1 | U7: 1/1 | V7: 71.4 %
B8: Ikä ensimmäisessä ottelussa | C8: 18 v 8 kk 9 pv
B10: B-TYTÖT | C10: Itä - Länsi, tulos | D10: Joukkue | E10: Seura | G10: V | H10: T | I10: H | J10: Up. | K10: Lj. | L10: Palk. | M10: O | N10: K | O10: L | P10: T | Q10: KL | R10: 1 | S10: 2 | T10: 3 | U10: k | V10: KL-% | W10: Pelinjohtaja | X10: Yleisöä
B11: 03.07. 2010 Helsinki | C11: 1-2 (8-5, 2-3, 0-1) | D11: Länsi | E11: ViVe | G11: 1 | J11: s | K11: 5 | M11: 1 | O11: 1 | Q11: 1/3 | T11: 0/1 | U11: 1/2 | V11: 33.3 % | W11: Petri Kaijansinkko | X11: 1032
B13: LIITTO - LEHDISTÖ - KORTTI
B14: NAISET | C14: Tulos | D14: Joukkue | E14: Seura | G14: V | H14: T | I14: H | J14: Up. | K14: Lj. | L14: Palk. | M14: O | N14: K | O14: L | P14: T | Q14: KL | R14: 1 | S14: 2 | T14: 3 | U14: k | V14: KL-% | W14: Pelinjohtaja | X14: Yleisöä
B15: 19.06. 2012 Turku | C15: 1-0 (3-0, 2-2) | D15: Lehdistö | E15: Virkiä | I15: 1 | J15: 2P | K15: 8 | M15: 1 | Q15: 0/0 | V15: ---- | W15: Jussi Viljanen | X15: 755
B16: Ikä ensimmäisessä ottelussa | C16: 19 v 7 kk 5 pv
